bitfinex-derivatives/quotes_SOLF0:USTF0_20241127
["timestamp","ask_amount","ask_price","bid_price","bid_amount"]
[1732669455783,5.2014,229.18,229.06,2.58]
[1732669455975,2.6214,229.18,229.08,26.17785251]
[1732669457081,1.3028,229.18,229.16,26.17785251]
[1732669457281,2.1819,229.27,229.2,2.1824]
[1732669458082,2.1819,229.26,229.2,2.1824]
[1732669458482,1.2272,229.28,229.2,2.1824]
[1732669458888,3.409,229.28,229.21,2.1823]
[1732669459590,1.2272,229.28,229.2,26.17785251]
[1732669460484,1194.0,230.54,229.2,26.17785251]
[1732669460689,2.1809,229.36,229.24,26.17785251]
[1732669460878,3.8857,229.38,229.24,28.79785251]
[1732669461286,2.623,229.38,229.28,26.17785251]
[1732669461488,2.623,229.38,229.24,28.79785251]
[1732669462386,2.181,229.35,229.29,2.1816]
[1732669462583,2.181,229.35,229.26,16.08108969]
[1732669463184,2.181,229.35,229.28,2.1817]
[1732669463583,13.05,229.31,229.07,5.97754954]
[1732669463886,16.08108969,229.28,229.09,16.08108969]
[1732669464090,2.1827,229.17,229.09,16.08108969]
[1732669464484,2.62,229.21,229.09,16.08108969]
[1732669464787,2.1826,229.19,229.1,2.1833]
[1732669465782,2.1826,229.19,229.11,2.1833]
[1732669465983,16.08108969,229.28,229.09,16.08108969]
[1732669466186,2.62,229.27,229.13,16.08108969]
[1732669466789,2.62,229.27,229.15,2.1828]
[1732669467984,2.62,229.27,229.13,18.26408969]
[1732669468185,18.70108969,229.27,229.09,16.08108969]
[1732669468892,2.5822,229.26,229.09,16.08108969]
[1732669469888,2.1823,229.22,229.15,2.1829]
[1732669470091,2.5822,229.26,229.15,2.1829]
[1732669470292,2.62,229.25,229.15,2.1829]
[1732669470597,2.1824,229.21,229.09,16.08108969]
[1732669470988,2.62,229.25,229.13,2.183]
[1732669471294,2.1829,229.15,229.09,16.08108969]
[1732669471603,2.62,229.19,229.06,2.1837]
[1732669471792,2.62,229.18,229.06,2.1837]
[1732669472090,16.08108969,229.23,229.06,2.1837]
[1732669472091,2.62,229.17,229.06,2.1837]
[1732669472295,2.62,229.16,229.05,17.36838969]
[1732669472496,2.62,229.17,229.05,17.36838969]
[1732669472697,2.62,229.18,229.05,17.36838969]
[1732669472895,2.62,229.17,229.08,2.1835]
[1732669473196,2.62,229.17,229.05,17.36838969]
[1732669473397,2.5822,229.26,229.11,2.1832]
[1732669473594,3.26314563,229.25,229.09,16.08108969]
[1732669473795,2.1825,229.2,229.09,16.08108969]
[1732669474093,2.62,229.21,229.09,16.08108969]
[1732669474991,2.1825,229.19,229.09,16.08108969]
[1732669475392,2.62,229.21,229.09,16.08108969]
[1732669475598,2.1825,229.2,229.13,2.1831]
[1732669475896,2.5822,229.26,229.09,16.08108969]
[1732669476102,2.62,229.25,229.13,16.08108969]
[1732669476297,2.1822,229.23,229.15,2.1829]
[1732669476492,2.1822,229.23,229.13,16.08108969]
[1732669476803,2.1823,229.22,229.13,16.08108969]
[1732669477803,2.1823,229.22,229.16,2.1828]
[1732669477996,2.1823,229.22,229.13,16.08108969]
[1732669479196,16.08108969,229.35,229.13,16.08108969]
[1732669479501,0.64346053,229.34,229.13,16.08108969]
[1732669479693,2.1817,229.28,229.21,2.1823]
[1732669480197,2.62,229.33,229.17,16.08108969]
[1732669480502,2.1819,229.27,229.17,16.08108969]
[1732669480700,2.62,229.33,229.17,16.08108969]
[1732669480999,0.64337972,229.32,229.17,16.08108969]
[1732669481201,2.1815,229.3,229.17,16.08108969]
[1732669481400,2.1815,229.3,229.17,18.70108969]
[1732669482495,2.1816,229.29,229.17,18.70108969]
[1732669483097,2.1816,229.29,229.22,2.1822]
[1732669483901,2.1815,229.3,229.23,2.1821]
[1732669484897,2.62,229.36,229.21,16.08108969]
[1732669485097,0.64337436,229.35,229.21,16.08108969]
[1732669486100,0.64337436,229.35,229.31,2.1814]
[1732669486296,2.62,229.36,229.08,17.93264864]
[1732669486499,16.08108969,229.31,229.12,16.08108969]
[1732669486800,3.26324748,229.3,229.16,16.08108969]
[1732669487014,0.64324748,229.29,229.16,16.08108969]
[1732669487299,2.62,229.32,229.22,2.1822]
[1732669487500,2.62,229.33,229.2,18.70108969]
[1732669487705,0.64326193,229.32,229.25,2.1819]
[1732669487907,0.64326193,229.32,229.2,18.70108969]
[1732669487908,0.64326193,229.32,229.24,16.08108969]
[1732669488106,16.08108969,229.43,229.24,16.08108969]
[1732669488305,3.26326642,229.42,229.24,16.08108969]
[1732669488605,0.64326642,229.41,229.24,16.08108969]
[1732669489303,0.64326642,229.41,229.2,2.62]
[1732669489304,0.64326642,229.41,229.28,16.08108969]
[1732669489510,0.64326642,229.41,229.34,2.1811]
[1732669490298,2.1804,229.42,229.34,2.1811]
[1732669490507,0.64350767,229.41,229.28,18.70108969]
[1732669490707,2.62,229.44,229.28,2.62]
[1732669490901,0.64352571,229.43,229.28,2.62]
[1732669491303,2.62,229.44,229.28,2.62]
[1732669491607,0.64352995,229.43,229.28,2.62]
[1732669491909,2.62,229.44,229.28,2.62]
[1732669492110,0.64360774,229.43,229.28,2.62]
[1732669492299,0.64360774,229.43,229.08,58.16504591]
[1732669492300,16.08108969,229.31,229.07,2.22199958]
[1732669492498,2.7,229.3,229.11,16.08108969]
[1732669492701,2.1825,229.2,229.12,2.1831]
[1732669492909,2.7,229.22,229.12,2.1831]
[1732669493301,2.7,229.22,229.13,2.1831]
[1732669493608,2.7,229.22,229.11,16.08108969]
[1732669494503,2.7,229.22,229.14,2.183]
[1732669494704,16.08108969,229.31,229.11,16.08108969]
[1732669494902,3.34350777,229.3,229.11,16.08108969]
[1732669495103,3.34350777,229.3,229.15,16.08108969]
[1732669495104,2.1819,229.26,229.15,16.08108969]
[1732669495404,2.7,229.33,229.19,16.08108969]
[1732669495610,4.8813,229.33,229.23,2.1821]
[1732669495808,2.7,229.33,229.23,16.08108969]
[1732669497005,2.7,229.38,229.23,16.08108969]
[1732669497202,16.08108969,229.46,229.27,16.08108969]
[1732669497203,2.7,229.44,229.27,16.08108969]
[1732669497405,0.64384501,229.43,229.06,5.97754954]
[1732669497607,16.08108969,229.36,229.16,16.08108969]
[1732669497911,2.1816,229.29,229.2,2.1824]
[1732669498409,2.7,229.35,229.21,2.7]
[1732669499114,2.1814,229.32,229.24,2.182]
[1732669499304,2.7,229.39,229.21,2.7]
[1732669499612,2.7,229.39,229.24,16.08108969]
[1732669500505,16.08108969,229.47,229.28,16.08108969]
[1732669500703,3.34369226,229.46,229.29,2.7]
[1732669500916,2.1806,229.4,229.29,2.7]
[1732669501209,16.08108969,229.47,229.29,2.7]
[1732669501409,2.7,229.46,229.29,2.7]
[1732669501611,3.9879756,229.46,229.32,16.08108969]
[1732669501907,3.34394645,229.46,229.32,16.08108969]
[1732669502111,5.52394645,229.46,229.37,2.1808]
[1732669502307,16.08108969,229.4,229.14,17.93264864]
[1732669502509,16.08108969,229.36,229.13,16.08108969]
[1732669502713,2.7,229.35,229.14,2.7]
[1732669502915,2.1818,229.27,229.14,2.7]
[1732669503908,2.1818,229.27,229.13,16.08108969]
[1732669504111,16.08108969,229.32,229.14,2.7]
[1732669504308,2.7,229.35,229.14,2.7]
[1732669504613,2.7,229.35,229.17,16.08108969]
[1732669504805,2.1815,229.3,229.22,2.1822]
[1732669505209,2.7,229.34,229.17,16.08108969]
[1732669505514,4.8811,229.34,229.17,16.08108969]
[1732669506014,16.08108969,229.4,229.21,16.08108969]
[1732669506308,16.08108969,229.48,229.29,16.08108969]
[1732669506505,3.34455969,229.47,229.3,2.7]
[1732669506711,2.82455969,229.46,229.36,2.1809]
[1732669506912,0.64455969,229.46,229.33,16.08108969]
[1732669507107,2.7,229.49,229.33,16.08108969]
[1732669507407,0.6445342,229.48,229.39,2.1806]
[1732669507610,2.7,229.52,229.38,2.7]
[1732669507913,0.64458073,229.51,229.43,2.1802]
[1732669508217,2.7,229.52,229.43,2.1802]
[1732669508913,2.1794,229.52,229.44,2.1801]
[1732669509313,2.7,229.58,229.41,16.08108969]
[1732669509710,2.7,229.58,229.39,2.7]
[1732669509711,16.08108969,229.57,229.39,2.7]
[1732669509914,16.08108969,229.57,229.35,16.08108969]
[1732669510116,2.1801,229.45,229.35,2.181]
[1732669510310,16.08108969,229.49,229.35,2.181]
[1732669510716,16.08108969,229.49,229.34,2.7]
[1732669510717,2.18,229.46,229.36,2.1808]
[1732669511022,16.08108969,229.49,229.36,2.1808]
[1732669511213,16.08108969,229.49,229.34,2.7]
[1732669511411,16.08108969,229.45,229.27,16.08108969]
[1732669511617,2.7,229.44,229.25,2.7]
[1732669511813,2.7,229.44,229.27,16.08108969]
[1732669512022,2.7,229.44,229.28,2.7]
[1732669512422,16.08108969,229.49,229.31,16.08108969]
[1732669512423,2.7,229.49,229.31,16.08108969]
[1732669513023,2.7,229.53,229.37,16.08108969]
[1732669513221,16.08108969,229.57,229.38,2.7]
[1732669513423,2.7,229.54,229.38,2.7]
[1732669513724,2.1796,229.5,229.42,2.1803]
[1732669514017,2.7,229.54,229.41,16.08108969]
[1732669514215,2.7,229.57,229.41,16.08108969]
[1732669514817,2.1791,229.55,229.41,16.08108969]
[1732669515423,2.1791,229.55,229.47,2.1798]
[1732669515719,2.7,229.57,229.24,23.91019818]
[1732669515720,16.08108969,229.49,229.24,23.91019818]
[1732669515926,16.08108969,229.45,229.24,23.91019818]
[1732669516117,16.08108969,229.41,229.24,2.182]
[1732669516321,1.3384,229.4,229.24,2.182]
[1732669516916,1.3384,229.4,229.21,1.33]
[1732669517921,1.3384,229.4,229.26,2.1818]
[1732669518121,1.3384,229.4,229.23,16.08108969]
[1732669518323,1.3384,229.4,229.25,26.13160127]
[1732669519022,2.1809,229.36,229.28,2.1816]
[1732669519415,1.3384,229.4,229.25,26.13160127]
[1732669519615,6.419,229.4,229.25,26.13160127]
[1732669519818,6.419,229.4,229.26,2.9]
[1732669520623,6.419,229.4,229.29,2.1815]
[1732669520825,6.419,229.4,229.26,2.9]
[1732669521217,2.1803,229.43,229.29,26.13160127]
[1732669521625,2.9,229.45,229.33,26.13160127]
[1732669521832,2.9,229.45,229.33,29.03160127]
[1732669522325,2.9,229.45,229.37,2.1808]
[1732669522728,2.9,229.45,229.33,29.03160127]
[1732669522924,26.13160127,229.53,229.33,29.03160127]
[1732669523221,3.54391544,229.52,229.33,29.03160127]
[1732669523427,2.9,229.52,229.33,29.03160127]
[1732669523628,2.1798,229.49,229.33,29.03160127]
[1732669523823,4.1247,229.52,229.37,26.13160127]
[1732669524019,1.2247,229.52,229.37,26.13160127]
[1732669524216,1.2247,229.52,229.42,2.1803]
[1732669524217,2.1795,229.51,229.42,2.1803]
[1732669524630,2.1795,229.51,229.4,2.9]
[1732669524827,3.4041,229.52,229.44,2.1801]
[1732669525027,3.4041,229.52,229.41,26.13160127]
[1732669525226,3.4041,229.52,229.34,1.2972]
[1732669525227,26.13160127,229.49,229.24,47.82039637]
[1732669525427,3.54375113,229.48,229.27,26.13160127]
[1732669525626,2.9,229.48,229.27,26.13160127]
[1732669526229,2.1802,229.44,229.33,2.1812]
[1732669526425,2.9,229.48,229.32,4.2174]
[1732669526628,2.9,229.48,229.35,26.13160127]
[1732669526825,5.0799,229.48,229.38,2.1807]
[1732669527029,5.0799,229.48,229.35,26.13160127]
[1732669527330,2.1799,229.48,229.35,26.13160127]
[1732669527528,1.2247,229.52,229.32,5.4714]
[1732669527529,2.1796,229.5,229.41,2.1804]
[1732669528025,2.1796,229.5,229.4,2.9]
[1732669528230,2.1796,229.5,229.42,2.1803]
[1732669528529,1.2247,229.52,229.41,1.2721]
[1732669528728,1.2247,229.52,229.44,2.1801]
[1732669528932,2.1794,229.53,229.41,1.2721]
[1732669529132,29.03160127,229.58,229.41,1.2721]
[1732669529133,29.03160127,229.58,229.41,2.543]
[1732669529432,29.03160127,229.58,229.43,2.1802]
[1732669529628,2.1793,229.53,229.41,2.543]
[1732669530635,1.2127,229.57,229.42,2.1803]
[1732669531232,26.13160127,229.43,229.2,26.13160127]
[1732669531529,5.3952,229.42,229.25,1.2758]
[1732669531726,5.3952,229.42,229.25,3.4577]
[1732669532127,5.3952,229.42,229.25,1.2758]
[1732669532328,2.1808,229.37,229.27,2.1817]
[1732669532725,5.3952,229.42,229.27,2.1817]
[1732669532932,2.1809,229.36,229.27,2.1817]
[1732669533134,2.1809,229.36,229.28,2.1816]
[1732669533531,2.1806,229.4,229.25,1.2758]
[1732669533929,5.3952,229.42,229.25,1.2758]
[1732669534332,5.3952,229.42,229.28,26.13160127]
[1732669534532,5.3952,229.42,229.29,1.3353]
[1732669534834,5.3952,229.42,229.3,2.9]
[1732669535037,5.3952,229.42,229.33,2.1812]
[1732669535935,2.1822,229.23,229.13,5.97754954]
[1732669536135,13.05,229.34,229.09,26.13160127]
[1732669536136,2.9,229.27,229.09,26.13160127]
[1732669536336,29.03160127,229.29,229.09,29.03160127]
[1732669536729,2.1821,229.24,229.14,2.183]
[1732669536934,29.03160127,229.29,229.09,29.03160127]
[1732669537337,2.1821,229.23,229.11,2.1832]
[1732669537532,29.03160127,229.29,229.09,29.03160127]
[1732669537741,29.03160127,229.29,229.1,2.9]
[1732669538441,2.182,229.25,229.13,2.183]
[1732669538939,29.03160127,229.29,229.13,2.183]
[1732669539139,2.1821,229.24,229.13,2.183]
[1732669539340,2.9,229.23,229.05,27.42460127]
[1732669539643,26.13160127,229.21,229.05,1.293]
[1732669540041,1.2364,229.2,229.05,1.293]
[1732669540441,2.1827,229.18,229.09,2.1834]
[1732669541639,2.1827,229.18,229.05,1.293]
[1732669541839,2.1829,229.16,229.05,1.293]
[1732669542140,1.2364,229.2,229.05,1.293]
[1732669542343,1.3135,229.19,229.05,1.293]
[1732669542540,26.13160127,229.17,229.02,2.92]
[1732669542743,2.92,229.16,229.02,2.92]
[1732669542938,2.183,229.14,229.05,2.1838]
[1732669544345,2.1831,229.13,229.05,2.1838]
[1732669544744,2.183,229.15,229.06,2.1837]
[1732669545043,2.92,229.16,229.06,2.1837]
[1732669545239,2.92,229.16,229.02,2.92]
[1732669545546,2.98,229.19,229.05,26.13160127]
[1732669545846,2.98,229.19,229.06,1.2235]
[1732669547244,2.1829,229.15,229.06,1.2235]
[1732669549445,2.1829,229.15,229.06,3.4072]
[1732669549644,2.98,229.19,229.06,1.2235]
[1732669549838,2.98,229.19,229.03,2.184]
[1732669550143,26.13160127,229.16,228.97,27.34800127]
[1732669550342,26.13160127,229.12,228.97,1.2164]
[1732669550544,2.1842,229.02,228.96,0.32776]
[1732669550739,2.98,229.03,228.96,0.32776]
[1732669550942,1.2398,229.01,228.96,0.32776]
[1732669551137,2.1845,228.98,228.96,0.32776]
[1732669552148,1.3043,229.0,228.96,0.32776]
[1732669552540,1.2854,229.11,228.96,0.32776]
[1732669552750,0.64357155,229.1,228.98,26.13160127]
[1732669553045,0.64357155,229.1,228.96,0.32776]
[1732669553244,2.1837,229.07,228.96,0.32776]
[1732669553449,3.8443,229.11,228.96,0.32776]
[1732669553651,3.8443,229.11,229.02,2.1841]
[1732669553849,3.8443,229.11,228.96,0.32776]
[1732669554050,3.8443,229.11,228.97,2.1846]
[1732669554246,3.8443,229.11,228.96,0.32776]
[1732669555043,26.13160127,229.08,228.96,0.32776]
[1732669556048,2.98,229.07,228.96,0.32776]
[1732669556450,2.1839,229.05,228.97,2.1846]
[1732669556651,2.98,229.07,228.96,0.32776]
[1732669557054,2.1839,229.05,228.96,0.32776]
[1732669557356,2.98,229.07,228.96,0.32776]
[1732669557650,2.98,229.07,228.97,2.1846]
[1732669557651,2.1839,229.05,228.97,2.1846]
[1732669558350,2.1839,229.05,228.96,0.32776]
[1732669558545,2.98,229.07,228.96,0.32776]
[1732669560152,2.1842,229.02,228.96,0.32776]
[1732669560350,26.13160127,229.05,228.96,0.32776]
[1732669560551,26.13160127,229.01,228.96,0.32776]
[1732669560852,3.8443,229.11,228.96,0.32776]
[1732669560853,26.13160127,228.97,228.96,0.32776]
[1732669561047,29.11160127,228.97,228.96,0.32776]
[1732669561352,1.2997,228.97,228.96,0.32776]
[1732669562150,2.5021,229.0,228.96,0.32776]
[1732669562151,1.2174,229.0,228.96,0.32776]
[1732669562955,16.13311684,228.99,228.96,0.32776]
[1732669563150,16.13311684,228.99,228.8,16.13311684]
[1732669563346,16.13311684,228.95,228.78,2.98]
[1732669563653,2.98,228.94,228.78,2.98]
[1732669563849,2.1853,228.91,228.78,2.98]
[1732669564050,2.98,228.93,228.78,2.98]
[1732669565160,2.1853,228.91,228.85,2.1857]
[1732669565360,1.2524,228.98,228.84,16.13311684]
[1732669565650,1.2174,229.0,228.85,2.98]
[1732669565856,1.2174,229.0,228.85,4.2827]
[1732669566255,1.2174,229.0,228.86,1.3238]
[1732669567350,2.1845,228.98,228.86,1.3238]
[1732669567951,2.98,229.03,228.86,1.3238]
[1732669567952,2.98,229.03,228.97,2.1846]
[1732669568453,2.98,229.03,228.88,2.1855]
[1732669568659,26.20746513,229.02,228.88,2.1855]
[1732669568955,26.20746513,229.02,228.78,5.97754954]
[1732669568956,26.20746513,228.9,228.76,5.97754954]
[1732669569153,26.20746513,228.85,228.76,5.97754954]
[1732669569358,26.20746513,228.85,228.66,5.97754954]
[1732669569359,3.18,228.84,228.66,5.97754954]
[1732669569555,3.18,228.84,228.67,0.80353617]
[1732669569753,3.18,228.84,228.71,2.1871]
[1732669570062,3.18,228.84,228.65,27.52306513]
[1732669570358,2.1861,228.82,228.66,3.18]
[1732669570553,3.18,228.84,228.66,4.3986]
[1732669570960,26.20746513,228.77,228.61,5.97754954]
[1732669571159,26.20746513,228.73,228.61,5.97754954]
[1732669571353,26.20746513,228.73,228.54,139.60353685]
[1732669571354,3.18,228.72,228.54,19.15124864]
[1732669571659,26.20746513,228.69,228.54,1.2186]
[1732669572055,2.1876,228.66,228.55,2.1886]
[1732669572249,1.271,228.75,228.56,26.20746513]
[1732669572561,26.20746513,228.73,228.57,3.18]
[1732669574752,1.271,228.75,228.57,3.18]
[1732669574957,2.5795,228.76,228.6,26.20746513]
[1732669575161,1.2956,228.76,228.64,26.20746513]
[1732669575354,1.2956,228.76,228.65,3.18]
[1732669575853,2.1869,228.74,228.65,3.18]
[1732669576250,1.2956,228.76,228.65,3.18]
[1732669576453,2.1867,228.75,228.65,5.3676]
[1732669576656,1.2956,228.76,228.65,3.18]
[1732669577450,26.20746513,228.85,228.67,26.20746513]
[1732669577852,26.20746513,228.85,228.67,27.41556513]
[1732669578457,1.262,228.88,228.67,27.41556513]
[1732669578851,2.1859,228.84,228.74,2.1868]
[1732669579051,1.262,228.88,228.68,3.18]
[1732669580261,2.1857,228.85,228.68,3.18]
[1732669580663,1.262,228.88,228.68,3.18]
[1732669580960,2.186,228.81,228.7,2.1869]
[1732669581160,1.262,228.88,228.71,26.20746513]
[1732669581761,1.262,228.88,228.75,26.20746513]
[1732669581954,51.50343309,228.91,228.76,3.18]
[1732669582159,25.29596796,228.91,228.8,2.186]
[1732669582461,25.29596796,228.91,228.77,1.3184]
[1732669582660,25.29596796,228.91,228.78,3.18]
[1732669582856,26.20746513,228.87,228.77,1.3184]
[1732669583064,26.20746513,228.87,228.71,3.18]
[1732669583260,2.1861,228.79,228.69,2.1871]
[1732669583462,26.20746513,228.83,228.69,3.18]
[1732669583767,2.1863,228.77,228.68,1.3184]
[1732669584464,1.2536,228.82,228.68,1.3184]
[1732669585058,1.2536,228.82,228.68,27.52586513]
[1732669585265,1.2143,228.9,228.72,26.20746513]
[1732669585467,1.2143,228.9,228.73,3.18]
[1732669585867,1.2143,228.9,228.76,26.20746513]
[1732669586071,2.1852,228.89,228.79,2.1861]
[1732669586360,1.2143,228.9,228.8,3.18]
[1732669586970,2.1854,228.87,228.8,3.18]
[1732669587262,1.2143,228.9,228.8,3.18]
[1732669587461,2.1855,228.86,228.8,3.18]
[1732669587862,2.1855,228.86,228.74,1.2239]
[1732669588063,1.2143,228.9,228.72,2.1867]
[1732669588269,26.20746513,228.87,228.73,3.18]
[1732669588568,2.5355,228.9,228.73,3.18]
[1732669588963,2.1853,228.88,228.73,3.18]
[1732669589163,2.5355,228.9,228.73,3.18]
[1732669589364,2.1852,228.89,228.81,2.1859]
[1732669589665,1.2143,228.9,228.8,3.18]
[1732669589865,2.1852,228.89,228.81,2.1859]
[1732669590071,1.2143,228.9,228.8,3.18]
[1732669590270,1.2143,228.9,228.78,3.18]
[1732669590564,1.2143,228.9,228.75,3.18]
[1732669591160,2.1855,228.86,228.75,3.18]
[1732669591469,1.2143,228.9,228.74,1.2855]
[1732669591666,2.1862,228.79,228.71,5.3669]
[1732669591865,29.38746513,228.87,228.71,3.18]
[1732669592059,29.38746513,228.87,228.58,288.0]
[1732669592060,3.18,228.87,228.58,288.0]
[1732669592265,26.20746513,228.77,228.58,2.1881]
[1732669592461,5.7572,228.76,228.58,2.1881]
[1732669592667,5.7572,228.76,228.56,5.97754954]
[1732669592863,2.187,228.71,228.6,2.1879]
[1732669593063,5.7572,228.76,228.6,2.1879]
[1732669593272,5.7572,228.76,228.55,26.20746513]
[1732669593469,2.187,228.7,228.61,2.1878]
[1732669593663,5.7572,228.76,228.61,2.1878]
[1732669593866,2.1867,228.74,228.63,2.1876]
[1732669594064,5.3667,228.74,228.63,2.1876]
[1732669594670,2.1867,228.73,228.65,0.37892]
[1732669594866,1.277,228.76,228.65,0.37892]
[1732669595474,3.4635,228.76,228.66,2.1873]
[1732669595669,1.277,228.76,228.65,0.37892]
[1732669596271,27.49865528,228.78,228.68,2.1871]
[1732669596575,25.31235528,228.78,228.65,0.37892]
[1732669596769,25.31235528,228.78,228.49,47.82039637]
[1732669596770,16.0,228.68,228.47,281.9598]
[1732669596971,26.20746513,228.56,228.45,42.39950134]
[1732669597165,26.20746513,228.52,228.45,42.39950134]
[1732669597365,2.1892,228.47,228.45,40.74860134]
[1732669597574,26.20746513,228.52,228.43,19.61131489]
[1732669597770,26.20746513,228.52,228.34,2.5241]
[1732669598074,26.20746513,228.48,228.34,2.5241]
[1732669598269,26.20746513,228.52,228.34,2.5241]
[1732669598474,2.1887,228.52,228.34,28.73156513]
[1732669598974,2.1887,228.52,228.38,2.19]
[1732669599175,26.20746513,228.56,228.39,3.34]
[1732669600168,26.20746513,228.52,228.39,3.34]
[1732669600368,26.20746513,228.58,228.39,3.34]
[1732669600971,26.20746513,228.63,228.45,2.1893]
[1732669601274,26.20746513,228.63,228.46,7.1786]
[1732669601469,2.1882,228.58,228.46,7.1786]
[1732669601673,3.34,228.57,228.25,288.0]
[1732669601878,3.34,228.57,228.16,26.20746513]
[1732669601879,2.1905,228.33,228.16,26.20746513]
[1732669602078,2.1905,228.33,228.16,29.54746513]
[1732669602378,26.20746513,228.37,228.16,29.54746513]
[1732669602676,2.1907,228.32,228.16,29.54746513]
[1732669602870,26.20746513,228.37,228.16,29.54746513]
[1732669603070,3.34,228.4,228.2,26.20746513]
[1732669603273,26.20746513,228.41,228.2,26.20746513]
[1732669603473,26.20746513,228.45,228.24,26.20746513]
[1732669603670,26.20746513,228.45,228.25,5.8762]
[1732669603871,26.20746513,228.45,228.25,2.5362]
[1732669604073,26.20746513,228.45,228.26,4.5986]
[1732669604677,26.20746513,228.49,228.28,26.20746513]
[1732669605177,360.1794144,230.23,228.32,26.20746513]
[1732669605178,26.20746513,228.53,228.32,26.20746513]
[1732669605471,26.20746513,228.53,228.33,3.34]
[1732669605976,2.1889,228.5,228.38,2.19]
[1732669606175,2.1889,228.5,228.39,1.3217]
[1732669606473,2.1893,228.47,228.35,2.1903]
[1732669606672,26.20746513,228.49,228.34,1.2215]
[1732669607279,2.1893,228.46,228.34,3.4119]
[1732669607481,26.20746513,228.49,228.34,1.2215]
[1732669607680,26.20746513,228.53,228.34,1.2215]
[1732669608077,2.1889,228.5,228.39,2.1899]
[1732669608273,26.20746513,228.57,228.4,3.34]
[1732669608474,26.20746513,228.57,228.41,5.9324]
[1732669608981,26.20746513,228.57,228.46,2.1892]
[1732669609177,26.20746513,228.57,228.41,5.9324]
[1732669609575,2.1885,228.55,228.45,2.1893]
[1732669609772,2.1885,228.55,228.46,1.3275]
[1732669610780,28.39576513,228.57,228.46,3.5167]
[1732669610976,26.20746513,228.61,228.46,1.3275]
[1732669611178,3.34,228.64,228.46,1.3275]
[1732669611381,29.54746513,228.65,228.48,26.20746513]
[1732669611574,29.54746513,228.65,228.49,3.34]
[1732669611780,26.20746513,228.65,228.49,3.34]
[1732669611980,28.39496513,228.65,228.55,2.1884]
[1732669612374,26.20746513,228.65,228.49,3.34]
[1732669612578,26.20746513,228.69,228.49,3.34]
[1732669613179,28.39456513,228.69,228.59,2.188]
[1732669613779,26.20746513,228.69,228.58,3.34]
[1732669613984,2.1869,228.71,228.61,2.1878]
[1732669614682,2.1867,228.73,228.59,1.2289]
[1732669614883,25.31235528,228.78,228.61,26.20746513]
[1732669615384,2.1866,228.75,228.66,2.1873]
[1732669615581,25.31235528,228.78,228.65,3.34]
[1732669616889,2.1866,228.74,228.66,2.1873]
[1732669617192,26.20746513,228.77,228.61,3.34]
[1732669617386,2.1866,228.75,228.67,2.1872]
[1732669617589,25.31235528,228.78,228.61,29.54746513]
[1732669618288,2.1865,228.76,228.61,29.54746513]
[1732669618489,25.31235528,228.78,228.61,29.54746513]
[1732669620486,2.1864,228.76,228.61,29.54746513]
[1732669620681,2.1864,228.76,228.61,3.34]
[1732669621087,25.31235528,228.78,228.65,2.1874]
[1732669621288,25.31235528,228.78,228.61,3.34]
[1732669621289,2.1866,228.75,228.61,3.34]
[1732669622289,2.1866,228.75,228.66,2.1873]
[1732669622993,2.1864,228.77,228.68,2.1872]
[1732669623187,25.31235528,228.78,228.64,26.20746513]
[1732669623391,26.20746513,228.85,228.68,26.20746513]
[1732669623690,2.1857,228.84,228.75,2.1865]
[1732669623891,3.34,228.9,228.72,26.20746513]
[1732669624787,3.34,228.94,228.72,26.20746513]
[1732669625088,13.05,229.01,228.7,1.3339]
[1732669625089,2.1851,228.9,228.82,2.1858]
[1732669625291,26.20746513,228.96,228.81,3.34]
[1732669625491,26.20746513,228.92,228.81,3.34]